fUSD/lending_fUSD_20240117
["ID","MTS","AMOUNT","RATE_DAILY","PERIOD"]
[311861651,1705476682250,-157.93,0.00023246,2]
[311861652,1705476682260,-2562.46,0.0002326,2]
[311861653,1705476682270,-531.55,0.0002326,2]
[311861654,1705476682279,-1329.99,0.0002326,2]
[311861655,1705476682289,-507.06,0.0002326,2]
[311861656,1705476682298,-962.52,0.0002326,2]
[311861657,1705476682307,-500.0,0.0002326,2]
[311861658,1705476682317,-695.31,0.0002326,2]
[311861659,1705476682326,-1996.0,0.0002326,2]
[311861660,1705476682335,-1157.64,0.0002326,2]
[311861661,1705476682344,-500.0,0.0002326,2]
[311861662,1705476682354,-500.0,0.0002326,2]
[311861663,1705476682363,-500.0,0.0002326,2]
[311861664,1705476682372,-1340.59,0.0002326,2]
[311861665,1705476682381,-500.0,0.0002326,2]
[311861666,1705476682392,-955.75,0.0002326,2]
[311861667,1705476682405,-742.93,0.0002326,2]
[311861668,1705476682414,-1402.47,0.0002326,2]
[311861669,1705476682423,-2064.93,0.0002326,2]
[311861670,1705476682432,-1190.72,0.0002326,2]
[311861671,1705476682442,-961.02,0.0002326,2]
[311861672,1705476682451,-279.19689242,0.0002326,2]
[311861673,1705476682460,-1952.44,0.0002326,2]
[311861674,1705476682469,-500.0,0.0002326,2]
[311861675,1705476682480,-915.46,0.0002326,2]
[311861676,1705476682490,-2814.84,0.0002326,2]
[311861677,1705476682499,-1127.35,0.0002326,2]
[311861678,1705476682508,-500.0,0.0002326,2]
[311861679,1705476682518,-3808.94,0.0002326,2]
[311861680,1705476682527,-589.65,0.0002326,2]
[311861681,1705476682536,-961.12,0.0002326,2]
[311861682,1705476682546,-6462.4,0.0002326,2]
[311861683,1705476682556,-1348.17,0.0002326,2]
[311861684,1705476682565,-1329.87,0.0002326,2]
[311861685,1705476682574,-500.0,0.0002326,2]
[311861686,1705476682583,-500.0,0.0002326,2]
[311861687,1705476682592,-972.05,0.0002326,2]
[311861688,1705476682601,-575.95,0.0002326,2]
[311861689,1705476682611,-1454.92,0.0002326,2]
[311861690,1705476682620,-934.72,0.0002326,2]
[311861691,1705476682630,-500.0,0.0002326,2]
[311861692,1705476682640,-500.0,0.0002326,2]
[311861693,1705476682650,-981.21,0.0002326,2]
[311861694,1705476682659,-1279.62,0.0002326,2]
[311861695,1705476682669,-986.71,0.0002326,2]
[311861696,1705476682679,-1378.02,0.0002326,2]
[311861697,1705476682689,-983.17,0.0002326,2]
[311861698,1705476682699,-749.55,0.0002326,2]
[311861699,1705476682709,-500.0,0.0002326,2]
[311861700,1705476682719,-500.0,0.0002326,2]
[311861701,1705476682728,-1392.8,0.0002326,2]
[311861702,1705476682738,-1362.05,0.0002326,2]
[311861703,1705476682747,-616.52,0.0002326,2]
[311861704,1705476682758,-2330.49,0.0002326,2]
[311861705,1705476682767,-500.0,0.0002326,2]
[311861706,1705476682777,-1450.51,0.00023261,2]
[311861707,1705476682786,-500.0,0.00023261,2]
[311861708,1705476682795,-500.0,0.00023261,2]
[311861709,1705476682805,-571.67,0.00023261,2]
[311861710,1705476682814,-500.0,0.00023261,2]
[311861711,1705476682824,-1092.03,0.00023261,2]
[311861712,1705476682833,-500.0,0.00023261,2]
[311861713,1705476682842,-510.15044332,0.00023261,2]
[311861714,1705476682850,-500.0,0.00023261,2]
[311861715,1705476682859,-500.0,0.00023261,2]
[311861716,1705476682868,-500.0,0.00023261,2]
[311861717,1705476682878,-500.0,0.00023261,2]
[311861718,1705476682888,-500.0,0.00023261,2]
[311861719,1705476682897,-500.0,0.00023261,2]
[311861720,1705476682907,-500.0,0.00023261,2]
[311861721,1705476682917,-500.0,0.00023261,2]
[311861722,1705476682926,-500.0,0.00023261,2]
[311861723,1705476682936,-501.76,0.00023261,2]
[311861724,1705476682946,-468.29370821,0.00023262,2]
[311861725,1705476682955,-500.0,0.00023262,2]
[311861726,1705476682965,-500.0,0.00023262,2]
[311861727,1705476682974,-500.0,0.00023262,2]
[311861728,1705476682984,-500.0,0.00023262,2]
[311861729,1705476682993,-500.0,0.00023262,2]
[311861730,1705476683002,-500.0,0.00023262,2]
[311861731,1705476683011,-500.0,0.00023262,2]
[311861732,1705476683021,-500.0,0.00023262,2]
[311861733,1705476683030,-500.0,0.00023262,2]
[311861734,1705476683039,-500.0,0.00023262,2]
[311861735,1705476683049,-500.0,0.00023262,2]
[311861736,1705476683059,-500.0,0.00023262,2]
[311861737,1705476683069,-178.95863483,0.00023262,2]
[311861738,1705476683078,-651.99,0.00023262,2]
[311861739,1705476683087,-500.0,0.00023262,2]
[311861740,1705476683097,-500.0,0.00023262,2]
[311861741,1705476683107,-856.04,0.00023262,2]
[311861742,1705476683117,-500.0,0.00023262,2]
[311861743,1705476683127,-869.69,0.00023262,2]
[311861744,1705476683140,-500.0,0.00023262,2]
[311861745,1705476683150,-500.0,0.00023262,2]
[311861746,1705476683161,-951.55,0.00023262,2]
[311861747,1705476683171,-500.0,0.00023262,2]
[311861748,1705476683182,-500.0,0.00023262,2]
[311861749,1705476683192,-1108.5,0.00023262,2]
[311861750,1705476683202,-500.0,0.00023262,2]
[311861751,1705476683212,-500.0,0.00023262,2]
[311861752,1705476683222,-503.13957987,0.00023262,2]
[311861753,1705476683232,-500.0,0.00023262,2]
[311861754,1705476683241,-908.25,0.00023262,2]
[311861755,1705476683251,-500.0,0.00023262,2]
[311861756,1705476683260,-660.16,0.00023262,2]
[311861757,1705476683270,-500.0,0.00023262,2]
[311861758,1705476683279,-500.0,0.00023262,2]
[311861759,1705476683289,-500.0,0.00023262,2]
[311861760,1705476683299,-462.74095882,0.00023262,2]
[311861761,1705476683309,-500.0,0.00023262,2]
[311861762,1705476683319,-500.0,0.00023262,2]
[311861763,1705476683329,-500.0,0.00023262,2]
[311861764,1705476683339,-909.11,0.00023262,2]
[311861765,1705476683349,-500.0,0.00023262,2]
[311861766,1705476683360,-500.0,0.00023262,2]
[311861767,1705476683369,-500.0,0.00023262,2]
[311861768,1705476683379,-500.0,0.00023262,2]
[311861769,1705476683391,-500.0,0.00023262,2]
[311861770,1705476683404,-500.0,0.00023262,2]
[311861771,1705476683413,-211.82990227,0.00023262,2]
[311861772,1705476683423,-500.0,0.00023262,2]
[311861773,1705476683433,-500.0,0.00023262,2]
[311861774,1705476683445,-978.68,0.00023262,2]
[311861775,1705476683454,-549.02234614,0.00023262,2]
[311861776,1705476683464,-500.0,0.00023262,2]
[311861777,1705476683474,-565.15,0.00023262,2]
[311861778,1705476683484,-838.25,0.00023262,2]
[311861779,1705476683494,-1873.58,0.00023262,2]
[311861780,1705476683504,-308.80970792,0.00023262,2]
[311861781,1705476683514,-612.35,0.00023262,2]
[311861782,1705476683523,-543.4,0.00023262,2]
[311861783,1705476683533,-392.73,0.00023262,2]
[311861784,1705476683542,-500.0,0.00023262,2]
[311861785,1705476683553,-750.15,0.00023262,2]
[311861786,1705476683562,-500.0,0.00023262,2]
[311861787,1705476683572,-500.0,0.00023262,2]
[311861788,1705476683581,-500.0,0.00023262,2]
[311861789,1705476683591,-702.71,0.00023262,2]
[311861790,1705476683600,-500.0,0.00023262,2]
[311861791,1705476683610,-500.0,0.00023262,2]
[311861792,1705476683619,-500.0,0.00023262,2]
[311861793,1705476683629,-500.0,0.00023262,2]
[311861794,1705476683639,-507.06408399,0.00023262,2]
[311861795,1705476683649,-504.78131841,0.00023262,2]
[311861796,1705476683658,-500.0,0.00023262,2]
[311861797,1705476683667,-1028.88,0.00023262,2]
[311861798,1705476683678,-377.57782127,0.00023262,2]
[311861799,1705476683688,-613.84,0.00023262,2]
[311861800,1705476683698,-500.0,0.00023262,2]
[311861801,1705476683709,-500.0,0.00023262,2]
[311861802,1705476683719,-500.0,0.00023262,2]
[311861803,1705476683729,-220.22610939,0.00023262,2]
[311861804,1705476683740,-500.0,0.00023262,2]
[311861805,1705476683752,-334.58921713,0.00023262,2]
[311861806,1705476683763,-500.0,0.00023262,2]
[311861807,1705476683773,-629.19,0.00023262,2]
[311861808,1705476683783,-646.55,0.00023262,2]
[311861809,1705476683792,-585.97,0.00023262,2]
[311861810,1705476683803,-2391.2,0.00023262,2]
[311861811,1705476683813,-500.0,0.00023262,2]
[311861812,1705476683823,-903.32,0.00023262,2]
[311861813,1705476683833,-844.88,0.00023262,2]
[311861814,1705476683843,-1835.11,0.00023262,2]
[311861815,1705476683852,-908.46,0.00023262,2]
[311861816,1705476683862,-1433.97,0.00023262,2]
[311861817,1705476683871,-500.0,0.00023262,2]
[311861818,1705476683881,-500.0,0.00023262,2]
[311861819,1705476683891,-572.94,0.00023262,2]
[311861820,1705476683901,-500.0,0.00023262,2]
[311861821,1705476683911,-500.0,0.00023262,2]
[311861822,1705476683921,-1163.47,0.00023262,2]
[311861823,1705476683931,-500.0,0.00023262,2]
[311861824,1705476683941,-518.83,0.00023262,2]
[311861825,1705476683951,-1102.74,0.00023262,2]
[311861826,1705476683961,-500.0,0.00023262,2]
[311861827,1705476683970,-500.0,0.00023262,2]
[311861828,1705476683979,-1143.43,0.00023262,2]
[311861829,1705476683989,-500.0,0.00023262,2]
[311861830,1705476683999,-500.0,0.00023262,2]
[311861831,1705476684008,-292.97025679,0.00023262,2]
[311861832,1705476684018,-500.0,0.00023262,2]
[311861833,1705476684027,-500.0,0.00023262,2]
[311861834,1705476684037,-508.58745026,0.00023262,2]
[311861835,1705476684048,-1468.47,0.00023262,2]
[311861836,1705476684058,-915.09,0.00023262,2]
[311861837,1705476684068,-901.19,0.00023262,2]
[311861838,1705476684079,-500.0,0.00023262,2]
[311861839,1705476684090,-1000.0,0.00023262,2]
[311861840,1705476684100,-528.1,0.00023262,2]
[311861841,1705476684112,-500.0,0.00023262,2]
[311861842,1705476684123,-740.56,0.00023262,2]
[311861843,1705476684133,-500.0,0.00023262,2]
[311861844,1705476684143,-500.0,0.00023262,2]
[311861845,1705476684153,-2009.17,0.00023262,2]
[311861846,1705476684162,-500.0,0.00023262,2]
[311861847,1705476684171,-500.0,0.00023262,2]
[311861848,1705476684181,-500.0,0.00023262,2]
[311861849,1705476684191,-500.0,0.00023262,10]
[311861850,1705476684200,-407.60518417,0.00023262,2]
[311861851,1705476684211,-764.74,0.00023262,2]
[311861852,1705476684223,-500.0,0.00023262,2]
[311861853,1705476684232,-1467.35,0.00023262,2]
[311861854,1705476684242,-755.67,0.00023262,2]
[311861855,1705476684253,-816.16,0.00023262,2]
[311861856,1705476684263,-526.73,0.00023262,2]
[311861857,1705476684272,-1664.58,0.00023262,2]
[311861858,1705476684282,-500.0,0.00023262,2]
[311861859,1705476684292,-500.0,0.00023262,2]
[311861860,1705476684301,-500.0,0.00023262,2]
[311861861,1705476684311,-500.0,0.00023262,2]
[311861862,1705476684321,-500.0,0.00023262,2]
[311861863,1705476684331,-500.0,0.00023262,2]
[311861864,1705476684341,-500.0,0.00023262,2]
[311861865,1705476684351,-500.0,0.00023262,2]
[311861866,1705476684362,-500.0,0.00023262,2]
[311861867,1705476684372,-1000.0,0.00023262,7]
[311861868,1705476684383,-300.0,0.00023262,2]
[311861869,1705476684395,-1085.94,0.00023262,2]
[311861870,1705476684408,-945.7,0.00023262,2]
[311861871,1705476684417,-500.0,0.00023262,2]
[311861872,1705476684427,-500.0,0.00023262,2]
[311861873,1705476684437,-500.0,0.00023262,2]
[311861874,1705476684447,-500.0,0.00023262,2]
[311861875,1705476684457,-500.0,0.00023262,2]
[311861876,1705476684467,-500.0,0.00023262,2]
[311861877,1705476684479,-626.35,0.00023262,2]
[311861878,1705476684489,-613.12,0.00023262,2]
[311861879,1705476684499,-500.0,0.00023262,2]
[311861880,1705476684509,-1180.77,0.00023262,2]
[311861881,1705476684518,-696.24,0.00023262,2]
[311861882,1705476684528,-846.17,0.00023262,2]
[311861883,1705476684537,-500.0,0.00023262,2]
[311861884,1705476684547,-500.0,0.00023262,2]
[311861885,1705476684557,-876.2,0.00023262,2]
[311861886,1705476684568,-422.58648985,0.00023262,2]
[311861887,1705476684578,-500.0,0.00023262,2]
[311861888,1705476684587,-500.0,0.00023262,2]
[311861889,1705476684597,-500.0,0.00023262,2]
[311861890,1705476684606,-955.49,0.00023262,2]
[311861891,1705476684616,-890.92,0.00023262,2]
[311861892,1705476684626,-1209.49,0.00023262,2]
[311861893,1705476684636,-500.0,0.00023262,2]
[311861894,1705476684646,-500.0,0.00023262,2]
[311861895,1705476684655,-500.0,0.00023262,2]
[311861896,1705476684665,-500.0,0.00023262,2]
[311861897,1705476684674,-636.14,0.00023262,2]
[311861898,1705476684683,-500.0,0.00023262,2]
[311861899,1705476684693,-500.0,0.00023262,2]
[311861900,1705476684703,-500.0,0.00023262,2]
[311861901,1705476684712,-500.0,0.00023262,2]
[311861902,1705476684722,-1408.29,0.00023262,2]
[311861903,1705476684731,-500.0,0.00023262,2]
[311861904,1705476684741,-557.27520553,0.00023262,2]
[311861905,1705476685032,-500.0,0.00023262,2]
[311861906,1705476685041,-512.20844763,0.00023262,2]
[311861907,1705476685051,-500.0,0.00023262,2]
[311861908,1705476685061,-2114.56,0.00023262,2]
[311861909,1705476685070,-500.0,0.00023262,2]
[311861910,1705476685080,-1195.63,0.00023262,2]
[311861911,1705476685089,-1513.22,0.00023262,2]
[311861912,1705476685099,-945.44,0.00023262,2]
[311861913,1705476685108,-1379.44,0.00023262,2]
[311861914,1705476685118,-1078.33,0.00023262,2]
[311861915,1705476685128,-500.0,0.00023262,2]
[311861916,1705476685137,-500.0,0.00023262,2]
[311861917,1705476685147,-500.0,0.00023262,2]
[311861918,1705476685156,-500.0,0.00023262,2]
[311861919,1705476685166,-500.0,0.00023262,2]
[311861920,1705476685176,-1845.66,0.00023262,2]
[311861921,1705476685185,-500.0,0.00023262,2]
[311861922,1705476685196,-973.49,0.00023262,2]
[311861923,1705476685205,-500.0,0.00023262,2]
[311861924,1705476685215,-500.0,0.00023262,2]
[311861925,1705476685225,-500.0,0.00023262,2]
[311861926,1705476685234,-500.0,0.00023262,2]
[311861927,1705476685244,-500.0,0.00023262,2]
[311861928,1705476685254,-523.15,0.00023262,2]
[311861929,1705476685263,-593.67,0.00023262,2]
[311861930,1705476685272,-500.0,0.00023262,2]
[311861931,1705476685282,-500.0,0.00023262,2]
[311861932,1705476685291,-500.0,0.00023262,2]
[311861933,1705476685300,-1006.51,0.00023262,2]
[311861934,1705476685310,-838.4,0.00023262,2]
[311861935,1705476685320,-737.13,0.00023262,2]
[311861936,1705476685331,-500.0,0.00023262,2]
[311861937,1705476685340,-686.86,0.00023262,2]
[311861938,1705476685350,-1280.69,0.00023262,2]
[311861939,1705476685361,-500.0,0.00023262,2]
[311861940,1705476685370,-500.0,0.00023262,2]
[311861941,1705476685380,-500.0,0.00023262,2]
[311861942,1705476685392,-500.0,0.00023262,2]
[311861943,1705476685404,-500.0,0.00023262,2]
[311861944,1705476685414,-500.0,0.00023262,2]
[311861945,1705476685423,-503.98179743,0.00023262,2]
[311861946,1705476685434,-1266.81,0.00023262,2]
[311861947,1705476685444,-500.0,0.00023262,2]
[311861948,1705476685454,-1497.8,0.00023262,2]
[311861949,1705476685463,-500.0,0.00023262,2]
[311861950,1705476685472,-500.0,0.00023262,2]
[311861951,1705476685483,-1038.74,0.00023262,2]
[311861952,1705476685493,-167.45389522,0.00023262,2]
[311861953,1705476685503,-500.0,0.00023262,2]
[311861954,1705476685512,-500.0,0.00023262,2]
[311861955,1705476685522,-500.0,0.00023262,2]
[311861956,1705476685532,-504.37803868,0.00023262,2]
[311861957,1705476685541,-664.77,0.00023262,2]
[311861958,1705476685551,-1263.67,0.00023262,2]
[311861959,1705476685560,-2686.51,0.00023262,2]
[311861960,1705476685570,-500.0,0.00023262,2]
[311861961,1705476685580,-500.0,0.00023262,2]
[311861962,1705476685590,-765.1,0.00023262,2]
[311861963,1705476685600,-500.0,0.00023262,2]
[311861964,1705476685609,-500.0,0.00023262,2]
[311861965,1705476685618,-832.85,0.00023262,2]
[311861966,1705476685628,-916.69,0.00023262,2]
[311861967,1705476685640,-500.0,0.00023262,2]
[311861968,1705476685650,-500.0,0.00023262,2]
[311861969,1705476685659,-1224.51,0.00023262,2]
[311861970,1705476685669,-519.98,0.00023262,2]
[311861971,1705476685678,-848.31,0.00023262,2]
[311861972,1705476685688,-500.0,0.00023262,2]
[311861973,1705476685698,-1478.64,0.00023262,2]
[311861974,1705476685707,-500.0,0.00023262,2]
[311861975,1705476685717,-500.0,0.00023262,2]
[311861976,1705476685727,-500.0,0.00023262,2]
[311861977,1705476685737,-1114.81,0.00023262,2]
[311861978,1705476685747,-500.0,0.00023262,2]
[311861979,1705476685757,-500.0,0.00023262,2]
[311861980,1705476685766,-500.0,0.00023262,2]
[311861981,1705476685776,-915.2,0.00023262,2]
[311861982,1705476685785,-870.29,0.00023262,2]
[311861983,1705476685795,-1030.52,0.00023262,2]
[311861984,1705476685805,-500.0,0.00023262,2]
[311861985,1705476685814,-500.0,0.00023262,2]
[311861986,1705476685824,-500.0,0.00023262,2]
[311861987,1705476685834,-500.0,0.00023262,2]
[311861988,1705476685843,-3155.08,0.00023262,2]
[311861989,1705476685854,-500.0,0.00023262,2]
[311861990,1705476685863,-875.02,0.00023262,2]
[311861991,1705476685872,-1667.68,0.00023262,2]
[311861992,1705476685883,-506.12068688,0.00023262,2]
[311861993,1705476685894,-500.0,0.00023262,2]
[311861994,1705476685903,-995.69,0.00023262,2]
[311861995,1705476685912,-2912.72,0.00023262,2]
[311861996,1705476685921,-599.12,0.00023262,2]
[311861997,1705476685930,-500.0,0.00023262,2]
[311861998,1705476685940,-500.0,0.00023262,2]
[311861999,1705476685951,-703.55,0.00023262,2]
[311862000,1705476685962,-814.25,0.00023262,2]
[311862001,1705476685971,-839.28,0.00023262,2]
[311862002,1705476685981,-511.69500488,0.00023262,2]
[311862003,1705476685990,-1009.28,0.00023262,2]
[311862004,1705476686000,-500.0,0.00023262,2]
[311862005,1705476686009,-500.0,0.00023262,2]
[311862006,1705476686020,-520.35,0.00023262,2]
[311862007,1705476686031,-1464.32,0.00023262,2]
[311862008,1705476686040,-500.0,0.00023262,2]
[311862009,1705476686050,-500.0,0.00023262,2]
[311862010,1705476686060,-500.0,0.00023262,2]
[311862011,1705476686070,-897.64,0.00023262,2]
[311862012,1705476686080,-500.0,0.00023262,2]
[311862013,1705476686089,-1697.91,0.00023262,2]
[311862014,1705476686101,-500.0,0.00023262,2]
[311862015,1705476686110,-1815.4,0.00023262,2]
[311862016,1705476686119,-500.0,0.00023262,2]
[311862017,1705476686129,-904.67,0.00023262,2]
[311862018,1705476686138,-1454.27,0.00023262,2]
[311862019,1705476686148,-500.0,0.00023262,2]
[311862020,1705476686157,-1380.14,0.00023262,2]
[311862021,1705476686166,-500.0,0.00023262,2]
[311862022,1705476686176,-486.62010967,0.00023262,2]
[311862023,1705476686186,-500.0,0.00023262,2]
[311862024,1705476686196,-591.27,0.00023262,2]
[311862025,1705476686205,-500.0,0.00023262,2]
[311862026,1705476686215,-1398.29,0.00023262,2]
[311862027,1705476686225,-500.0,0.00023262,2]
[311862028,1705476686236,-616.55,0.00023262,2]
[311862029,1705476686246,-500.0,0.00023262,2]
[311862030,1705476686256,-1976.73,0.00023262,2]
[311862031,1705476686266,-500.0,0.00023262,2]
[311862032,1705476686276,-500.0,0.00023262,2]
[311862033,1705476686285,-500.0,0.00023262,2]
[311862034,1705476686295,-647.74,0.00023262,2]
[311862035,1705476686306,-500.0,0.00023262,2]
[311862036,1705476686315,-1337.5,0.00023262,2]
[311862037,1705476686325,-500.0,0.00023262,2]
[311862038,1705476686336,-1365.66,0.00023262,2]
[311862039,1705476686346,-1899.62,0.00023262,2]
[311862040,1705476686356,-500.0,0.00023262,2]
[311862041,1705476686366,-883.46,0.00023262,2]
[311862042,1705476686376,-500.0,0.00023262,2]
[311862043,1705476686386,-850.67,0.00023262,2]
[311862044,1705476686400,-1017.14,0.00023262,2]
[311862045,1705476686411,-500.0,0.00023262,2]
[311862046,1705476686421,-717.34,0.00023262,2]
[311862047,1705476686433,-500.0,0.00023262,2]
[311862048,1705476686442,-500.0,0.00023262,2]
[311862049,1705476686452,-500.0,0.00023262,2]
[311862050,1705476686462,-500.0,0.00023262,2]
[311862051,1705476686472,-1109.94,0.00023262,2]
[311862052,1705476686484,-915.25,0.00023262,2]
[311862053,1705476686493,-500.0,0.00023262,2]
[311862054,1705476686503,-196.22446456,0.00023262,2]
[311862055,1705476686512,-608.27,0.00023262,2]
[311862056,1705476686522,-824.13,0.00023262,2]
[311862057,1705476686531,-2349.47,0.00023263,2]
[311862058,1705476686541,-500.0,0.00023263,2]
[311862059,1705476686550,-1044.09,0.00023263,2]
[311862060,1705476686560,-500.0,0.00023263,2]
[311862061,1705476686570,-1747.03,0.00023263,2]
[311862062,1705476686579,-2017.43,0.00023263,2]
[311862063,1705476686589,-869.71,0.00023263,2]
[311862064,1705476686599,-500.0,0.00023264,2]
[311862065,1705476686608,-500.0,0.00023264,2]
[311862066,1705476686617,-1027.25,0.00023264,2]
[311862067,1705476686627,-500.0,0.00023264,2]
[311862068,1705476686637,-668.79,0.00023264,2]
[311862069,1705476686647,-500.0,0.00023264,2]
[311862070,1705476686656,-500.0,0.00023264,2]
[311862071,1705476686666,-653.84,0.00023264,2]
[311862072,1705476686675,-500.0,0.00023264,2]
[311862073,1705476686685,-500.0,0.00023264,2]
[311862074,1705476686694,-500.0,0.00023264,2]
[311862075,1705476686704,-500.0,0.00023264,2]
[311862076,1705476686713,-500.0,0.00023264,2]
[311862077,1705476686722,-500.0,0.00023264,2]
[311862078,1705476686731,-500.0,0.00023264,2]
[311862079,1705476686740,-500.0,0.00023264,2]
[311862080,1705476686750,-500.0,0.00023264,2]
[311862081,1705476686760,-500.0,0.00023264,2]
[311862082,1705476686770,-500.0,0.00023264,2]
[311862083,1705476686779,-500.0,0.00023264,2]
[311862084,1705476686789,-500.0,0.00023264,2]
[311862085,1705476686798,-714.7,0.00023264,2]
[311862086,1705476686809,-596.95,0.00023264,2]
[311862087,1705476686818,-491.634641,0.00023264,2]
[311862088,1705476686829,-503.68148039,0.00023264,2]
[311862089,1705476686839,-500.0,0.00023264,2]
[311862090,1705476686849,-642.14,0.00023264,2]
[311862091,1705476686859,-500.0,0.00023264,2]
[311862092,1705476686869,-500.0,0.00023264,2]
[311862093,1705476686878,-500.0,0.00023264,2]
[311862094,1705476686887,-1383.31,0.00023264,2]
[311862095,1705476686898,-500.0,0.00023264,2]
[311862096,1705476686907,-500.0,0.00023264,2]
[311862097,1705476686917,-500.0,0.00023264,2]
[311862098,1705476686927,-500.0,0.00023264,2]
[311862099,1705476686936,-500.0,0.00023264,2]
[311862100,1705476686945,-500.0,0.00023264,2]
[311862101,1705476686955,-562.95,0.00023264,2]
[311862102,1705476686965,-520.48972867,0.00023264,2]
[311862103,1705476686974,-500.0,0.00023264,2]
[311862104,1705476686983,-628.94,0.00023264,2]
[311862105,1705476686993,-747.85,0.00023264,2]
[311862106,1705476687002,-5811.8014133,0.00023271,2]
[311862107,1705476687011,-11756.1375826,0.00023271,2]
[311862108,1705476687020,-863.6621234,0.00023271,2]
[311862109,1705476687030,-15028.5515185,0.00023271,2]
[311862110,1705476687039,-1035.07959836,0.00023278,4]
[311862111,1705476687048,-500.0,0.00023286,2]
[311862112,1705476687058,-500.0,0.00023286,2]
[311862113,1705476687067,-500.0,0.00023286,2]
[311862114,1705476687077,-500.0,0.00023286,2]
[311862115,1705476687086,-500.0,0.00023286,2]
[311862116,1705476687097,-722.0,0.00023286,2]
[311862117,1705476687106,-500.0,0.00023286,2]
[311862118,1705476687116,-500.0,0.00023286,2]
[311862119,1705476687125,-500.0,0.00023286,2]
[311862120,1705476687135,-500.0,0.00023286,2]
[311862121,1705476687146,-267.81284201,0.00023286,2]
[311862122,1705476687155,-542.18,0.00023286,2]
[311862123,1705476687164,-833.24,0.00023286,2]
[311862124,1705476687174,-514.22826431,0.00023286,2]
[311862125,1705476687184,-385.12141845,0.00023286,2]
[311862126,1705476687193,-500.0,0.00023286,2]
[311862127,1705476687203,-500.0,0.00023286,2]
[311862128,1705476687215,-500.0,0.00023286,2]
[311862129,1705476687225,-588.46,0.00023286,2]
[311862130,1705476687235,-500.0,0.00023286,2]
[311862131,1705476687245,-500.0,0.00023286,2]
[311862132,1705476687255,-500.0,0.00023286,2]
[311862133,1705476687265,-1088.82,0.00023286,2]
[311862134,1705476687274,-500.0,0.00023286,2]
[311862135,1705476687283,-500.0,0.00023286,2]
[311862136,1705476687293,-751.57,0.00023286,2]
[311862137,1705476687303,-500.0,0.00023286,2]
[311862138,1705476687312,-613.34,0.00023286,2]
[311862139,1705476687321,-1137.35,0.00023286,2]
[311862140,1705476687419,-1343.2,0.00023286,2]
[311862141,1705476687428,-500.0,0.00023286,2]
[311862142,1705476687438,-687.48,0.00023286,2]
[311862143,1705476687449,-500.0,0.00023286,2]
[311862144,1705476687459,-360.29683669,0.00023286,2]
[311862145,1705476687470,-500.0,0.00023286,2]
[311862146,1705476687480,-500.0,0.00023286,2]
[311862147,1705476687489,-844.65,0.00023286,2]
[311862148,1705476687498,-500.0,0.00023286,2]
[311862149,1705476687508,-500.0,0.00023286,2]
[311862150,1705476687518,-500.0,0.00023286,2]